[Event "5th Sharjah Masters 2022"]
[Site "Sharjah"]
[Date "2022.05.27"]
[Round "7.37"]
[White "Hesham, Abdelrahman"]
[Black "Vogt, Lothar"]
[Result "0-1"]
[ECO "E84"]
[WhiteElo "2412"]
[BlackElo "2365"]
[Annotator "TA"]
[PlyCount "74"]
[EventDate "2022.05.21"]
[EventType "swiss"]
[EventCountry "UAE"]
[SourceTitle "playchess.com"]
[Source "ChessBase"]
[SourceQuality "1"]
[TimeControl "5400+30"]

{[%evp 25,74,22,50,61,68,54,95,88,102,94,92,14,18,0,0,-89,-93,-113,-98,-85,-71,-189,-182,-202,-156,-175,-73,-275,-257,-255,-259,-385,-399,-533,-506,-568,-556,-589,-512,-866,-525,-1134,-1102,-1395,-1339,-2293,-2235,-6170,-6113,-29970,-668]} 1. d4 {[%emt 0:00:04]} Nf6 {[%emt 0:00:03]} 2. c4 {[%emt 0:00:06]} g6 {[%emt 0:00:08]} 3. Nc3 {[%emt 0:00:04]} Bg7 {[%emt 0:00:08]} 4. e4 {[%emt 0:00:05]} d6 {[%emt 0:00:07]} 5. f3 {[%emt 0:00:03]} O-O {[%emt 0:00:10]} 6. Be3 {[%emt 0:00:04]} Nc6 {[%emt 0:00:13]} 7. Nge2 {[%emt 0:00:04]} a6 {[%emt 0:00:17]} 8. Qd2 {[%emt 0:00:06]} Rb8 {[%emt 0:00:10]} 9. h4 {[%emt 0:00:04]} h5 {[%emt 0:01:20]} 10. Nc1 {[%emt 0:00:07]} e5 {[%emt 0:01:57]} 11. d5 {[%emt 0:01:19]} Nd4 {[%emt 0:00:03]} 12. Nb3 {[%emt 0:00:06]} Nxb3 {[%emt 0:02:08]} 13. axb3 {[%emt 0:00:07][%cal Ba2b3,Bb3b4][%mdl 32]} c5 {[%emt 0:00:59]} 14. Be2 {[%emt 0:00:31] E84: King's Indian: Sämisch Panno: 7 Nge2 a6 8 Qd2 Rb8.} Bd7 {[%emt 0:04:11]} 15. Nd1 {[%emt 0:00:50]} Qc8 {[%emt 0:05:08]} 16. b4 {[%emt 0:00:50] White is better.} b6 {[%emt 0:06:05]} 17. Nf2 {[%emt 0:00:29] [#]} Nh7 $146 {[%emt 0:02:15]} ({Predecessor:} 17... Ra8 18. bxc5 bxc5 19. b4 cxb4 20. Qxb4 Qb8 21. Qa5 Rc8 22. O-O Qc7 23. Bb6 Qb7 {1-0 (44) Sipila,V (2399)-Ivanov,S (2080) Jyvaskyla 2019}) 18. Nd3 {[%emt 0:14:46]} (18. Bh6 $16) 18... f5 $11 {[%emt 0:01:19]} 19. bxc5 {[%emt 0:00:15]} bxc5 {[%emt 0:01:08]} 20. b4 {[%emt 0:00:07]} (20. Qc2 $11) 20... Nf6 $17 {[%emt 0:15:45]} 21. exf5 {[%emt 0:09:29]} Bxf5 {[%emt 0:08:47] Threatens to win with ...e4.} 22. O-O {[%emt 0:22:03][%cal Rb4c5]} e4 {[%emt 0:00:45]} 23. Nxc5 {[%emt 0:00:10]} dxc5 $19 {[%emt 0:03:03]} 24. Bxc5 {[%emt 0:00:27]} Rf7 {[%emt 0:08:05]} 25. d6 {[%emt 0:05:37]} Nd7 {[%emt 0:07:21]} (25... exf3 $19 26. Bxf3 Qe6) 26. Ra5 $2 {[%emt 0:06:04] White does not recover from this.} (26. Ba7 $17) 26... Nxc5 {[%emt 0:01:34]} 27. Rxc5 {[%emt 0:01:35]} Qb7 {[%emt 0:00:37]} 28. fxe4 {[%emt 0:01:57]} (28. Rd5 $142) 28... Qxe4 {[%emt 0:02:33] [#] aiming for ...Bd4+.} 29. Rd5 {[%emt 0:03:04] Inhibits Bd4+.} Be6 {[%emt 0:04:21]} 30. Bf3 {[%emt 0:07:01]} Qxc4 {[%emt 0:06:59]} 31. Rd3 {[%emt 0:01:02]} Qxb4 {[%emt 0:02:05]} 32. Qg5 {[%emt 0:03:51]} (32. Qxb4 $142 Rxb4 33. Rfd1) 32... Qb5 {[%emt 0:05:03]} 33. Qe3 {[%emt 0:08:48]} Bc4 {[%emt 0:02:25]} 34. Rdd1 {[%emt 0:00:06]} Bxf1 {[%emt 0:02:57]} 35. Rxf1 {[%emt 0:00:43] [#]} Rxf3 $1 {[%emt 0:02:16]} 36. Qe6+ {[%emt 0:01:26]} (36. Rxf3 Qd5) 36... Kh7 {[%emt 0:00:12]} 37. gxf3 {[%emt 0:00:22]} Qe5 {[%emt 0:01:35] Weighted Error Value: White=1.44/Black=0.30} (37... Qc5+ $142 38. Kh1 Rb4 39. Qh3 Qxd6 40. Kg1 Bd4+ 41. Kh1 Be5 42. f4 Bxf4 43. Qf3 Be5 44. Rf2 Qd4 45. Kg2 Qxh4 46. Qf7+ Kh6 47. Qf3 Kh7 48. Qf7+ Kh6 49. Qf8+ Bg7 50. Qxb4 Qxb4 51. Kf1 Qe4 52. Rh2 Bc3 53. Rf2 Qe1+ 54. Kg2 Bd4 55. Rf4 Bc5 56. Rf7 Qg1+ 57. Kh3 Bd6 58. Rh7+ Kxh7 59. Kh4 Qg4#) 0-1

[Event "5th Sharjah Masters 2022"]
[Site "Sharjah"]
[Date "2022.05.27"]
[Round "7.39"]
[White "Begmuratov, Khumoyun"]
[Black "Injac, Teodora"]
[Result "1-0"]
[ECO "B22"]
[WhiteElo "2384"]
[BlackElo "2384"]
[Annotator "TA"]
[PlyCount "59"]
[EventDate "2022.05.21"]
[EventType "swiss"]
[EventCountry "UAE"]
[SourceTitle "playchess.com"]
[Source "ChessBase"]
[SourceQuality "1"]
[TimeControl "5400+30"]

{[%evp 16,59,0,0,0,-53,-37,-33,-41,-46,-18,-14,-9,-7,0,10,1,0,0,0,19,0,17,18,230,60,439,439,415,416,404,405,465,462,450,437,487,476,463,456,905,868,1503,1086,945,-1835]} 1. e4 {[%emt 0:00:11][%cal Be2e4,Be4e5][%mdl 32]} c5 {[%emt 0:00:12]} 2. c3 {[%emt 0:00:13]} Nf6 {[%emt 0:00:35]} 3. e5 {[%emt 0:00:24]} Nd5 {[%emt 0:00:06]} 4. d4 {[%emt 0:00:13]} cxd4 {[%emt 0:01:57]} 5. Qxd4 {[%emt 0:00:10]} e6 {[%emt 0:03:49]} 6. Nf3 {[%emt 0:00:54]} Nc6 {[%emt 0:05:26]} 7. Qe4 {[%emt 0:00:19]} d6 {[%emt 0:07:49]} 8. Bb5 {[%emt 0:00:40]} Bd7 {[%emt 0:01:33]} 9. c4 {[%emt 0:06:26]} Nb6 {[%emt 0:12:53][%cal Bd5b6,Bb6c8,Bc8d6][%mdl 32] B22: Sicilian: 2 c3.} 10. Be3 {[%emt 0:19:18]} ({White should play} 10. exd6 $11 Bxd6 11. Bg5) 10... a6 {[%emt 0:17:59]} 11. Bxc6 {[%emt 0:00:25]} Bxc6 {[%emt 0:00:04] [#] Black is slightly better.} 12. Qd4 $146 {[%emt 0:00:52]} ({Predecessor:} 12. Qd3 Bxf3 13. gxf3 Rc8 14. Nd2 Qc7 15. exd6 Bxd6 16. Ne4 Bb4+ 17. Ke2 Be7 18. Rhg1 {1-0 (34) Conde Riveiro,X (1594)-Garcia Bugallo,J (1911) Pontevedra 2018}) 12... Bxf3 {[%emt 0:06:10]} (12... Na4 $5 {[%cal Rd6e5]}) 13. gxf3 {[%emt 0:00:34]} Nc8 {[%emt 0:00:00]} 14. Nc3 {[%emt 0:03:39] 0-0-0 is the strong threat.} Qc7 {[%emt 0:05:59]} 15. Bf4 {[%emt 0:04:44] Hoping for Rd1.} Qb6 {[%emt 0:04:50]} 16. Qd3 {[%emt 0:10:29] And now 0-0-0 would win.} dxe5 $1 {[%emt 0:01:12]} 17. O-O-O {[%emt 0:09:00][%csl Gd1][%cal Rd3d7]} Nd6 {[%emt 0:05:38]} ({Resist} 17... Bd6 18. Bxe5 $1 {[%mdl 512]} Bxe5 19. Qd7+ Kf8 20. c5 $16 (20. Qd8+ Qxd8 21. Rxd8+ Ke7 $16)) 18. Bxe5 {[%emt 0:00:55]} O-O-O {[%emt 0:01:17]} 19. Kb1 {[%emt 0:07:22] Black must now prevent Na4.} Qc5 $2 {[%emt 0:04:29] [#]} (19... f6 $11 {and Black is okay.} 20. Bg3 (20. Na4 Qc6 $17) 20... Nf7) 20. Qe2 $2 {[%emt 0:06:32]} (20. Bg3 $1 $18) 20... Be7 $2 {[%emt 0:02:04][%mdl 8192]} (20... Nf5 $14) 21. Na4 $18 {[%emt 0:02:33]} Qc6 {[%emt 0:05:36]} 22. c5 {[%emt 0:03:42]} Qxa4 {[%emt 0:02:22]} 23. cxd6 {[%emt 0:00:08]} Bf6 {[%emt 0:00:20]} 24. d7+ {[%emt 0:00:22] White is clearly winning.} Rxd7 {[%emt 0:00:04]} 25. Rxd7 {[%emt 0:00:04] White wants to mate with Rc1+.} Kxd7 {[%emt 0:01:36]} 26. Qd3+ {[%emt 0:00:16]} Ke8 {[%emt 0:01:21]} 27. Bxf6 {[%emt 0:00:05]} gxf6 {[%emt 0:00:20] [#]} (27... Qd7 $142 28. Qxd7+ Kxd7 29. Rd1+ Kc6 30. Bxg7 Rg8) 28. Rd1 $1 {[%emt 0:00:05][%csl Gd1][%cal Rd3d8]} Kf8 {[%emt 0:06:34]} 29. Qd8+ {[%emt 0:00:05]} Qe8 {[%emt 0:01:16]} 30. Qb8 $4 {[%emt 0:24:50][%mdl 40960] Weighted Error Value: White=0.21 (precise) /Black=0.71. Loss on time!?} 1-0

[Event "5th Sharjah Masters 2022"]
[Site "Sharjah"]
[Date "2022.05.27"]
[Round "7.40"]
[White "Al Hosani, Omran"]
[Black "Saeed, Ishaq"]
[Result "1-0"]
[ECO "C90"]
[WhiteElo "2191"]
[BlackElo "2397"]
[Annotator "TA"]
[PlyCount "156"]
[EventDate "2022.05.21"]
[EventType "swiss"]
[EventCountry "UAE"]
[SourceTitle "playchess.com"]
[Source "ChessBase"]
[SourceQuality "1"]
[TimeControl "5400+30"]

{[%evp 23,156,30,29,0,22,-6,0,-16,0,-33,-16,-42,0,-4,-17,-10,-16,-10,-18,-22,-13,-7,0,-25,-17,-42,17,15,29,24,7,12,49,44,106,35,51,33,54,-15,-15,-14,-12,-31,0,0,0,0,0,0,0,0,0,0,0,0,0,0,0,0,0,0,0,0,0,0,0,0,0,0,0,0,0,0,0,0,0,0,0,0,0,0,0,0,0,0,0,0,18,13,17,18,12850,12850,27995,27995,27999,27999,27996,27996,27997,27996,27998,27996,27997,27997,27998,27997,27998,27998,27997,27997,27998,27998,27999,27999,27996,27996,27997,27996,27997,27997,27998,27997,27998,27998,27999,27999,27995,27995,27996,27995,27996,27995,27996]} 1. e4 {[%emt 0:00:03]} e5 {[%emt 0:00:59]} 2. Nf3 {[%emt 0:00:12]} Nc6 {[%emt 0:00:06]} 3. Bb5 {[%emt 0:00:08]} a6 {[%emt 0:00:09]} 4. Ba4 {[%emt 0:00:05]} Nf6 {[%emt 0:00:07]} 5. O-O {[%emt 0:00:08]} b5 {[%emt 0:01:29]} 6. Bb3 {[%emt 0:00:10]} Bb7 {[%emt 0:00:06]} 7. d3 {[%emt 0:00:08]} Be7 {[%emt 0:03:01]} 8. c3 {[%emt 0:02:04]} O-O {[%emt 0:00:36]} 9. Re1 {[%emt 0:00:09]} d6 {[%emt 0:00:28]} 10. Nbd2 {[%emt 0:00:11]} Na5 {[%emt 0:02:26]} 11. Bc2 {[%emt 0:00:02]} c5 {[%emt 0:00:12]} 12. Nf1 {[%emt 0:00:14]} Re8 {[%emt 0:02:34]} 13. Ng3 {[%emt 0:03:08] C90: Closed Ruy Lopez with 7...d6: Early deviations.} h6 {[%emt 0:00:12]} 14. Nf5 {[%emt 0:00:54][%cal Oc1h6] Black must now prevent Bxh6!} Bf8 {[%emt 0:00:06] [#]} 15. Nd2 $146 {[%emt 0:10:17] The position is equal.} ({Predecessor:} 15. h3 d5 16. Qe2 Bc8 17. Ng3 d4 18. Nh2 Nc6 19. a4 Be6 20. Ng4 Nxg4 21. hxg4 g6 22. axb5 axb5 23. Rxa8 Qxa8 {0-1 (37) Stoleriu,G (2349)-Quesada Perez,Y (2565) Chess.com INT 2020}) 15... g6 {[%emt 0:13:05]} 16. Ng3 {[%emt 0:00:13]} Bg7 {[%emt 1:12:54]} 17. a4 {[%emt 0:00:33]} c4 {[%emt 0:00:00]} 18. axb5 {[%emt 0:01:11]} (18. b3 {looks sharper.} d5 19. axb5 cxb3 20. Nxb3 axb5 21. Be3) 18... axb5 {[%emt 0:00:00]} 19. b4 {[%emt 0:02:29]} (19. Nf3 {is more complex.} cxd3 20. Bxd3 Nc4 21. Rxa8 Qxa8 22. b3) 19... cxb3 $1 {[%emt 0:00:00]} 20. Nxb3 {[%emt 0:04:31]} Nxb3 {[%emt 0:00:00]} 21. Rxa8 {[%emt 0:00:07]} Qxa8 {[%emt 0:00:00]} 22. Bxb3 {[%emt 0:00:16]} d5 {[%emt 0:00:00]} 23. Qe2 {[%emt 0:03:26]} Nd7 {[%emt 0:00:00]} 24. Qf3 {[%emt 0:11:48][%cal Rb3d5]} Nc5 {[%emt 0:00:00]} (24... Qa1 $15) 25. Bxd5 $11 {[%emt 0:00:31]} Bxd5 {[%emt 0:00:00]} 26. exd5 {[%emt 0:00:04]} f5 {[%emt 0:00:00]} 27. h4 {[%emt 0:05:23]} h5 {[%emt 0:00:00]} 28. Bg5 {[%emt 0:00:22]} Nb7 {[%emt 0:00:00]} ({Black should try} 28... Rc8 $14) 29. Qe3 {[%emt 0:09:30] White is more active.} (29. c4 $16) 29... Nd6 $14 {[%emt 0:00:00]} 30. Qc5 {[%emt 0:04:06]} Bf8 {[%emt 0:00:00]} 31. Nf1 {[%emt 0:18:12]} ({Better is} 31. d4 $14 exd4 32. Rxe8 Qxe8 33. Qxd4) 31... Rc8 $11 {[%emt 0:00:00]} 32. Qe3 {[%emt 0:00:29]} Qxd5 {[%emt 0:00:00]} 33. Bf6 {[%emt 0:08:38]} Nf7 {[%emt 0:03:38]} (33... Rxc3 {is interesting.} 34. Qg3 Kf7 35. Rxe5 Qc6) 34. Bxe5 {[%emt 0:04:18]} Nxe5 {[%emt 0:03:27]} 35. Qxe5 {[%emt 0:00:06]} Qxe5 {[%emt 0:00:06]} 36. Rxe5 {[%emt 0:00:05]} Rxc3 {[%emt 0:00:05] Strongly threatening ...b4.} 37. Rxb5 {[%emt 0:00:04]} Rxd3 {[%emt 0:00:07][%mdl 4096] Endgame KRB-KRN} 38. g3 {[%emt 0:00:11][%cal Bg2g3,Bg3f4][%mdl 32]} Be7 {[%emt 0:01:51]} 39. Kg2 {[%emt 0:00:08]} f4 {[%emt 0:01:42]} 40. gxf4 {[%emt 0:02:05]} Bxh4 {[%emt 0:00:06]} 41. Rb6 {[%emt 0:03:23]} Kf7 {[%emt 0:00:25]} 42. Ng3 {[%emt 0:02:33]} Bd8 {[%emt 0:00:51]} 43. Rb7+ {[%emt 0:02:23]} Kf6 {[%emt 0:00:02]} 44. f5 {[%emt 0:00:13]} gxf5 {[%emt 0:01:06]} 45. Nxh5+ {[%emt 0:00:09]} Kg5 {[%emt 0:00:23]} 46. Ng3 {[%emt 0:00:31]} f4 {[%emt 0:00:37]} 47. Ne4+ {[%emt 0:00:12]} Kg6 {[%emt 0:00:31]} 48. f3 {[%emt 0:00:14]} Kh6 {[%emt 0:00:30]} 49. Rf7 {[%emt 0:00:33]} Ra3 {[%emt 0:00:30]} 50. Rxf4 {[%emt 0:00:28]} Kg6 {[%emt 0:00:29]} 51. Rf8 {[%emt 0:00:40]} Be7 {[%emt 0:00:20]} 52. Re8 {[%emt 0:00:09]} Kf7 {[%emt 0:00:05]} 53. Rc8 {[%emt 0:00:07]} Ke6 {[%emt 0:00:10]} 54. Kg3 {[%emt 0:00:11]} Ra1 {[%emt 0:00:50]} 55. Kf4 {[%emt 0:00:27]} Rg1 {[%emt 0:00:17]} 56. Rc6+ {[%emt 0:00:38]} Kd5 {[%emt 0:00:18]} 57. Ra6 {[%emt 0:00:09]} Rg8 $2 {[%emt 0:00:52][%mdl 8192] [#] Loses the game.} (57... Rh1 $11) 58. Nf6+ $1 $18 {[%emt 0:00:50]} Bxf6 {[%emt 0:00:05]} 59. Rxf6 {[%emt 0:00:06] KR-KR. White mates.} Rg1 {[%emt 0:01:34]} 60. Kf5 {[%emt 0:01:25]} Rf1 {[%emt 0:00:20]} 61. f4 {[%emt 0:00:25]} Rf2 {[%emt 0:00:41]} 62. Rf8 {[%emt 0:00:19]} Kd6 {[%emt 0:00:28]} 63. Re8 {[%emt 0:00:07]} Kd7 {[%emt 0:00:22]} 64. Re4 {[%emt 0:00:33]} Ra2 {[%emt 0:00:38]} 65. Kg5 {[%emt 0:00:56]} Rg2+ {[%emt 0:00:09]} 66. Kf6 {[%emt 0:00:08]} Rg1 {[%emt 0:00:23]} 67. f5 {[%emt 0:00:10][%cal Bf4f5,Bf5f6][%mdl 32]} Rf1 {[%emt 0:00:42]} 68. Kg6 {[%emt 0:00:08]} Rg1+ {[%emt 0:00:42]} 69. Kf7 {[%emt 0:00:07]} Kd6 {[%emt 0:00:22]} 70. f6 {[%emt 0:00:24]} Rf1 {[%emt 0:00:41]} 71. Re6+ {[%emt 0:01:11]} Kd7 {[%emt 0:00:32]} 72. Re2 {[%emt 0:00:08]} Kd6 {[%emt 0:00:27]} 73. Rd2+ {[%emt 0:00:33]} Kc7 {[%emt 0:00:35]} 74. Ke7 {[%emt 0:00:40]} Re1+ {[%emt 0:00:18]} 75. Kf8 {[%emt 0:00:10]} Rf1 {[%emt 0:00:38]} 76. f7 {[%emt 0:00:42]} Rg1 {[%emt 0:00:32]} 77. Rd4 {[%emt 0:00:11]} Kc6 {[%emt 0:00:28]} 78. Ke7 {[%emt 0:00:38]} Re1+ {[%emt 0:00:09] Weighted Error Value: White=0.11 (very precise) /Black=0.21 (precise)} 1-0

[Event "5th Sharjah Masters 2022"]
[Site "Sharjah"]
[Date "2022.05.28"]
[Round "8.1"]
[White "Abdusattorov, Nodirbek"]
[Black "Deac, Bogdan-Daniel"]
[Result "1/2-1/2"]
[ECO "C50"]
[WhiteElo "2661"]
[BlackElo "2671"]
[Annotator "TA"]
[PlyCount "87"]
[EventDate "2022.05.21"]
[EventType "swiss"]
[EventCountry "UAE"]
[SourceTitle "playchess.com"]
[Source "ChessBase"]
[SourceQuality "1"]
[TimeControl "5400+30"]

{[%evp 9,87,14,18,8,20,-7,23,23,22,21,24,25,41,14,32,14,10,14,12,16,26,18,41,15,48,50,50,50,50,41,45,40,54,52,54,54,54,56,52,55,55,52,72,42,55,16,16,16,16,1,1,2,2,4,4,4,2,10,29,23,37,0,10,0,0,0,0,0,0,0,0,0,0,0,0,0,0,0,0,0]} 1. e4 {[%emt 0:00:02]} e5 {[%emt 0:00:02]} 2. Nf3 {[%emt 0:00:20]} Nc6 {[%emt 0:00:04]} 3. Bc4 {[%emt 0:00:12]} Nf6 {[%emt 0:00:43]} 4. d3 {[%emt 0:00:21]} Bc5 {[%emt 0:01:59]} 5. Nc3 {[%emt 0:00:08]} a6 {[%emt 0:00:43]} 6. a4 {[%emt 0:00:16] C50: Hungarian Defence and Giuoco Pianissimo.} d6 {[%emt 0:02:49]} 7. Be3 {[%emt 0:01:27] [#]} Bb4 $146 {[%emt 0:04:58]} ({Predecessor:} 7... O-O 8. Nd5 Nxd5 9. Bxd5 Ne7 10. Bb3 Ng6 11. Qd2 Bg4 12. Bg5 Qd7 13. Nh4 Nxh4 14. Bxh4 {0-1 (57) Kannenberg,K (2182)-Perske,T (2454) Tegernsee 2018}) 8. O-O {[%emt 0:01:51] White has an edge.} Bxc3 {[%emt 0:01:16]} 9. bxc3 {[%emt 0:00:08]} h6 {[%emt 0:03:16]} 10. Nd2 {[%emt 0:05:52][%cal Bf3d2,Bd2f1,Bf1e3,Be3d5,Bd5f4][%mdl 32]} O-O {[%emt 0:12:25]} 11. d4 {[%emt 0:12:02]} Qe7 {[%emt 0:12:41][%cal Of6e4]} 12. Re1 {[%emt 0:19:56]} Ng4 {[%emt 0:00:56]} 13. Nf1 {[%emt 0:01:19]} exd4 {[%emt 0:08:09]} 14. Bxd4 {[%emt 0:00:12]} Nge5 {[%emt 0:04:37] Pair of Knights!} 15. Bb3 {[%emt 0:01:55]} Na5 {[%emt 0:07:35]} (15... Qg5 {keeps more tension.} 16. Ne3 Na5 17. g3 Ng4) 16. Ne3 {[%emt 0:00:55]} (16. f4 $5 {[%cal Rf4e5]} Bg4 17. Qd2 $14) 16... Nxb3 {[%emt 0:08:49]} (16... Qg5 {with more complications.} 17. g3 Ng4 18. Nd5 c5) 17. cxb3 {[%emt 0:00:37]} Nc6 {[%emt 0:00:25]} 18. Nd5 {[%emt 0:03:05]} Qd8 {[%emt 0:00:09]} 19. Re3 {[%emt 0:02:06][%cal Od4f6]} Nxd4 {[%emt 0:05:22]} 20. Qxd4 {[%emt 0:02:00]} Be6 {[%emt 0:01:34]} 21. Nf4 {[%emt 0:03:23]} Qg5 {[%emt 0:11:44] [#]} 22. Rg3 $1 {[%emt 0:02:49]} Qe5 {[%emt 0:00:17]} 23. Qxe5 {[%emt 0:00:34]} dxe5 {[%emt 0:00:04]} 24. Nxe6 {[%emt 0:00:07]} fxe6 $14 {[%emt 0:00:05][%mdl 4096] Endgame KRR-KRR} 25. Rd1 {[%emt 0:00:25]} a5 {[%emt 0:00:58]} 26. Rd7 {[%emt 0:02:08][%csl LRc7,LRg7]} Rf7 {[%emt 0:00:23]} 27. Rgd3 {[%emt 0:00:09] Rxf7 is the strong threat.} Ra6 {[%emt 0:06:11]} 28. Rd8+ {[%emt 0:08:57]} Rf8 {[%emt 0:00:12]} 29. Kf1 {[%emt 0:00:57]} Rb6 {[%emt 0:02:03]} 30. c4 {[%emt 0:02:59]} Rxd8 {[%emt 0:00:40]} 31. Rxd8+ $11 {[%emt 0:00:03] KR-KR} Kf7 {[%emt 0:00:08]} 32. Rd3 {[%emt 0:00:06]} Ke7 {[%emt 0:04:20]} 33. Ke2 {[%emt 0:00:26]} g6 {[%emt 0:00:49]} 34. h4 {[%emt 0:01:21]} c5 {[%emt 0:00:26]} 35. f4 {[%emt 0:02:24]} Rd6 {[%emt 0:00:34] The position is equal.} 36. Rg3 {[%emt 0:01:07]} Rd4 {[%emt 0:00:31]} 37. fxe5 {[%emt 0:00:35] [#] Strongly threatening Ke3.} Rxe4+ {[%emt 0:00:26]} 38. Kf3 {[%emt 0:00:07]} Rxh4 {[%emt 0:00:09] Threatens to win with ...g5.} 39. Rxg6 {[%emt 0:00:11] Black must now prevent Rg7+.} Kf7 {[%emt 0:00:09] Prevents Rg7+.} 40. Rf6+ {[%emt 0:00:34]} Ke7 {[%emt 0:00:02]} 41. Rg6 {[%emt 0:03:36]} Kf7 {[%emt 0:00:07] Inhibits Rg7+.} 42. Rf6+ {[%emt 0:00:04]} Ke7 {[%emt 0:00:05]} 43. Rg6 {[%emt 0:00:02] aiming for Rg7+.} Kf7 {[%emt 0:00:09] Against Rg7+} 44. Rf6+ {[%emt 0:00:06] Weighted Error Value: White=0.07 (flawless) /Black=0.05 (flawless)} 1/2-1/2

[Event "5th Sharjah Masters 2022"]
[Site "Sharjah"]
[Date "2022.05.28"]
[Round "8.2"]
[White "Niemann, Hans Moke"]
[Black "Salem, A.R. Saleh"]
[Result "0-1"]
[ECO "D97"]
[WhiteElo "2656"]
[BlackElo "2690"]
[Annotator "TA"]
[PlyCount "102"]
[EventDate "2022.05.21"]
[EventType "swiss"]
[EventCountry "UAE"]
[SourceTitle "playchess.com"]
[Source "ChessBase"]
[SourceQuality "1"]
[TimeControl "5400+30"]

{[%evp 23,102,4,10,0,0,0,0,10,9,3,3,3,3,9,16,15,21,12,52,48,60,16,29,0,0,0,0,0,0,0,0,-9,0,0,0,0,0,0,0,-93,-84,-181,-171,-324,-336,-336,-336,-336,-336,-329,-302,-971,-329,-370,-329,-464,-456,-639,-313,-29968,-29968,-7491,-5704,-29986,-29987,-29981,-29982,-29982,-29983,-29990,-29991,-29991,-29988,-29988,-29988,-29988,-29989,-29989,-29990,-29991,-29991]} 1. d4 {[%emt 0:00:08]} Nf6 {[%emt 0:00:07]} 2. c4 {[%emt 0:00:10]} g6 {[%emt 0:00:05]} 3. Nc3 {[%emt 0:00:48]} d5 {[%emt 0:00:02]} 4. Nf3 {[%emt 0:00:35]} Bg7 {[%emt 0:00:06]} 5. Qb3 {[%emt 0:00:11]} dxc4 {[%emt 0:00:45]} 6. Qxc4 {[%emt 0:00:22]} O-O {[%emt 0:00:05]} 7. e4 {[%emt 0:00:05]} a6 {[%emt 0:00:02]} 8. Be2 {[%emt 0:00:14]} b5 {[%emt 0:00:06]} 9. Qb3 {[%emt 0:00:04]} c5 {[%emt 0:00:08]} 10. dxc5 {[%emt 0:00:06]} Bb7 {[%emt 0:00:05]} 11. O-O {[%emt 0:00:09]} Nxe4 {[%emt 0:01:44]} 12. Nxe4 {[%emt 0:00:32]} Bxe4 {[%emt 0:00:02]} 13. Bf4 {[%emt 0:00:10] D97: Grünfeld: Russian System: 7 e4, replies other than 7...Bg4.} Bd5 {[%emt 0:10:38]} 14. Qe3 {[%emt 0:00:24]} Nc6 {[%emt 0:01:28]} 15. Rad1 {[%emt 0:00:16] The position is equal.} e6 {[%emt 0:00:03]} (15... Bxb2 16. Qd2 e5 17. Bh6 $16 (17. Qxb2 exf4 18. Rd2 Ra7 $11)) 16. Rd2 {[%emt 0:00:45]} Qa5 {[%emt 0:02:29]} 17. a3 {[%emt 0:00:11]} b4 {[%emt 0:01:10]} 18. Bd6 {[%emt 0:00:11]} Rfe8 {[%emt 0:12:19]} 19. h4 {[%emt 0:00:05][%cal Bh2h4,Bh4h5][%mdl 32]} bxa3 {[%emt 0:01:23]} 20. bxa3 {[%emt 0:00:12][%cal Oh4h5] [#]} h6 $5 $146 {[%emt 0:11:03][%mdl 8] New and interesting.} ({Predecessor:} 20... Bf8 21. Rfd1 Rad8 22. Ng5 Ne7 23. Qf4 Nf5 24. Bc7 Qxc5 25. Bxd8 Rxd8 26. Ne4 Qe7 {½-½ (54) Bennborn,J (2308)-Saharinen,P (1986) ICCF email 2012}) 21. h5 {[%emt 0:00:06]} g5 {[%emt 0:11:43]} 22. Nh2 {[%emt 0:00:12]} Qa4 {[%emt 0:00:04]} 23. Bf3 {[%emt 0:04:57]} Nd4 {[%emt 0:03:56]} 24. Bxd5 {[%emt 0:02:11]} exd5 {[%emt 0:00:11]} 25. Qd3 {[%emt 0:00:12]} Qc4 {[%emt 0:12:58]} 26. Nf3 {[%emt 0:02:05][%cal Rf3d4]} Ne2+ {[%emt 0:08:59]} 27. Kh2 {[%emt 0:01:39]} Re4 {[%emt 0:01:56]} 28. g3 {[%emt 0:02:14]} g4 {[%emt 0:05:28]} 29. Nh4 {[%emt 0:01:00]} Nd4 $1 {[%emt 0:00:04]} 30. Kg2 {[%emt 0:02:23]} Rae8 {[%emt 0:02:35]} 31. Qb1 {[%emt 0:04:49]} (31. Rb1 $11 {remains equal.}) 31... Bf6 $17 {[%emt 0:14:16] Black is more active. Black keeps a firm grip on the game.} 32. Rc1 {[%emt 0:01:44]} (32. Rxd4 $17 Bxd4 33. Nf5) 32... Qa4 $1 $19 {[%emt 0:00:00] aiming for ...Nb3. Chess con chili.} 33. Rxd4 {[%emt 0:02:37]} (33. Rcd1 Bxh4 34. gxh4) 33... Bxd4 {[%emt 0:00:00]} ({Weaker is} 33... Qxd4 34. Nf5 Qd2 35. Rd1 $11) 34. Nf5 {[%emt 0:00:59]} Qd7 $1 {[%emt 0:00:00]} ({Stronger than} 34... Qxa3 35. Nxh6+ Kg7 36. Nf5+ Kf6 37. Nxd4 Rxd4 38. h6 $17) 35. Nxd4 {[%emt 0:02:19]} Rxd4 {[%emt 0:00:00][%cal Be4d4,Bd4c4,Bc4c2][%mdl 32]} 36. Bf4 {[%emt 0:00:32] [#]} Rc4 $1 {[%emt 0:00:00][%cal Od5d4]} 37. Qb6 $2 {[%emt 0:01:57]} (37. Bxh6 Qe6 38. Bf4) 37... Qe6 $2 {[%emt 0:00:00]} (37... Rxc1 38. Bxc1 Qf5) 38. Rb1 {[%emt 0:02:37]} Rc2 {[%emt 0:00:00]} ({Avoid the trap} 38... Qe2 $2 39. Kg1 $19) 39. Kg1 {[%emt 0:01:11]} (39. Qxe6 $142 Rxe6 40. Kf1) 39... d4 {[%emt 0:00:00]} 40. Rd1 {[%emt 0:01:39]} (40. Qxe6 $142 fxe6 41. Rb4) 40... d3 {[%emt 0:02:15]} (40... Qe4 $142 {[%cal Oc2f2] ( -> ...Rxf2!)} 41. Rf1 Re6 42. Qd8+ Kh7) 41. Qd6 $2 {[%emt 0:00:08]} (41. Qxe6 $19 Rxe6 42. Be3) 41... Qe2 {[%emt 0:00:41][%csl LRd1,LRf2]} 42. Rf1 {[%emt 0:00:15]} d2 {[%emt 0:00:34][%cal Oe2f1]} 43. Qd7 {[%emt 0:01:44] [#]} Qxf1+ $3 {[%emt 0:01:54][%mdl 512] Black mates.} 44. Kxf1 {[%emt 0:00:02]} Re1+ {[%emt 0:00:07]} 45. Kg2 {[%emt 0:00:02]} d1=Q {[%emt 0:00:05]} 46. Qc8+ {[%emt 0:00:09]} Kg7 {[%emt 0:00:42]} 47. Bxh6+ {[%emt 0:00:15]} Kxh6 {[%emt 0:00:16]} 48. Qf8+ {[%emt 0:01:27]} Kxh5 {[%emt 0:00:38]} 49. Qxf7+ {[%emt 0:00:05] [#]} Kg5 $1 {[%emt 0:00:03]} 50. Qg7+ {[%emt 0:00:16]} Kf5 {[%emt 0:00:02]} 51. Qf7+ {[%emt 0:00:08]} Ke5 {[%emt 0:00:19] Weighted Error Value: White=0.69/Black=0.21 (precise)} 0-1